bitfinex/quotes_SOLUSD_20241102
["timestamp","ask_amount","ask_price","bid_price","bid_amount"]
[1730544640983,17.0949012,166.53,166.47,11.0900012]
[1730544642094,11.0900012,166.52,166.48,6.0067]
[1730544642681,11.0900012,166.52,166.48,21.0235]
[1730544642883,11.0900012,166.53,166.48,21.0235]
[1730544643500,11.0900012,166.53,166.48,32.1135012]
[1730544644089,11.0900012,166.54,166.48,32.1135012]
[1730544646790,6.0042,166.55,166.5,11.0900012]
[1730544649276,6.0042,166.55,166.5,17.0959012]
[1730544649986,11.0900012,166.56,166.5,17.0959012]
[1730544650192,6.0037,166.57,166.52,11.0900012]
[1730544650489,17.7140108,166.58,166.52,11.0900012]
[1730544650691,17.7140108,166.58,166.53,11.0900012]
[1730544651480,17.7140108,166.58,166.53,17.0948012]
[1730544651682,17.7140108,166.58,166.53,6.0048]
[1730544652280,17.7140108,166.58,166.53,17.0948012]
[1730544652478,0.6209096,166.58,166.53,32.1071012]
[1730544653578,17.7141108,166.58,166.53,32.1071012]
[1730544656394,11.0900012,166.57,166.53,15.0123]
[1730544657178,11.0900012,166.56,166.51,11.0900012]
[1730544657380,6.6241096,166.58,166.51,6.0055]
[1730544657381,11.0900012,166.55,166.51,6.0055]
[1730544658100,11.0900012,166.54,166.5,15.0147]
[1730544658487,11.0900012,166.55,166.5,21.0207]
[1730544660690,11.0900012,166.54,166.5,21.0207]
[1730544661489,11.0900012,166.54,166.5,15.0147]
[1730544662588,11.0900012,166.54,166.5,21.0207]
[1730544662808,11.0900012,166.54,166.5,15.0147]
[1730544663312,17.0942012,166.55,166.5,15.0147]
[1730544663498,6.0042,166.55,166.5,26.1047012]
[1730544663884,17.7141108,166.58,166.53,11.0900012]
[1730544665091,17.7141108,166.58,166.52,32.1084012]
[1730544665482,11.0900012,166.57,166.52,32.1084012]
[1730544665790,11.0900012,166.55,166.52,15.0132]
[1730544665991,11.0900012,166.54,166.52,15.0132]
[1730544667217,11.0900012,166.56,166.52,15.0132]
[1730544671010,17.0938012,166.56,166.51,11.0900012]
[1730544672329,17.0938012,166.56,166.51,17.0953012]
[1730544672502,17.0938012,166.56,166.51,6.0053]
[1730544675407,17.0938012,166.56,166.5,11.0900012]
[1730544675615,17.0938012,166.56,166.5,17.0959012]
[1730544676124,11.0900012,166.54,166.5,6.0059]
[1730544677708,11.0900012,166.55,166.5,6.0059]
[1730544679723,6.0044,166.55,166.5,17.0959012]
[1730544685244,6.0044,166.55,166.51,11.0900012]
[1730544686635,17.0938012,166.56,166.5,17.0959012]
[1730544688140,17.0938012,166.56,166.5,32.1109012]
[1730544688718,6.0038,166.56,166.51,11.0900012]
[1730544693844,6.0038,166.56,166.51,6.0055]
[1730544709840,17.0938012,166.56,166.5,15.015]
[1730544710650,17.0938012,166.56,166.5,26.1050012]
[1730544712268,17.0938012,166.56,166.5,32.1110012]
[1730544713956,6.0038,166.56,166.51,11.0900012]
[1730544715777,6.0038,166.56,166.51,17.0956012]
[1730544716062,6.6240096,166.58,166.53,11.0900012]
[1730544716238,6.6240096,166.58,166.54,11.0900012]
[1730544716239,0.6209096,166.58,166.54,11.0900012]
[1730544719370,0.6209096,166.58,166.54,17.0945012]
[1730544720368,0.6209096,166.58,166.55,11.0900012]
[1730544720961,0.6209096,166.58,166.54,21.0159]
[1730544720962,0.6209096,166.58,166.56,11.0900012]
[1730544728566,0.6209096,166.58,166.55,17.0938012]
[1730544733779,0.6209096,166.58,166.56,11.0900012]
[1730544737558,0.6209096,166.58,166.56,17.0938012]
[1730544737874,0.6209096,166.58,166.57,11.0900012]
[1730544738057,0.6209096,166.58,166.57,17.0934012]
[1730544769614,0.6209096,166.58,166.56,32.1034012]
[1730544769925,0.6209096,166.58,166.56,21.0134]
[1730544772393,0.6209096,166.58,166.57,11.0900012]
[1730544775088,0.6209096,166.58,166.57,17.0934012]
[1730544780886,0.6209096,166.58,166.56,26.0996012]
[1730544781091,0.6209096,166.58,166.56,15.0096]
[1730544787213,0.6209096,166.58,166.56,26.0996012]
[1730544787708,0.6209096,166.58,166.56,15.0096]
[1730544789604,0.6209096,166.58,166.54,11.0900012]
[1730544790513,6.6241096,166.58,166.54,11.0900012]
[1730544790710,6.6241096,166.58,166.53,21.0168]
[1730544790711,17.7141108,166.58,166.53,21.0168]
[1730544791415,6.6241096,166.58,166.53,32.1068012]
[1730544791603,6.6241096,166.58,166.55,11.0900012]
[1730544791998,6.6241096,166.58,166.54,11.0900012]
[1730544795117,6.6241096,166.58,166.53,11.0900012]
[1730544795718,17.7141108,166.58,166.53,11.0900012]
[1730544796619,17.7141108,166.58,166.53,17.0945012]
[1730544796926,6.6241096,166.58,166.53,17.0945012]
[1730544798707,6.6241096,166.58,166.53,32.1068012]
[1730544799635,17.7141108,166.58,166.53,21.0168]
[1730544802137,11.0900012,166.57,166.53,15.0123]
[1730544802306,11.0900012,166.56,166.53,15.0123]
[1730544802713,11.0900012,166.55,166.52,6.0052]
[1730544803012,11.0900012,166.54,166.51,6.0055]
[1730544804224,11.0900012,166.54,166.5,15.0147]
[1730544805125,6.0042,166.55,166.5,15.0147]
[1730544805126,17.0942012,166.55,166.5,15.0147]
[1730544805331,17.0942012,166.55,166.5,21.0207]
[1730544809822,11.0900012,166.51,166.47,27.29460036]
[1730544810134,11.0900012,166.52,166.47,21.0245]
[1730544811026,11.0900012,166.52,166.47,32.1145012]
[1730544815327,11.0900012,166.52,166.47,21.0245]
[1730544817741,11.0900012,166.51,166.47,21.0245]
[1730544820744,11.0900012,166.52,166.47,21.0245]
[1730544821042,11.0900012,166.52,166.47,32.1145012]
[1730544822024,11.0900012,166.52,166.47,21.0245]
[1730544822226,11.0900012,166.51,166.47,21.0245]
[1730544823228,11.0900012,166.5,166.47,15.0175]
[1730544823433,11.0900012,166.49,166.45,12.95121687]
[1730544823629,11.0900012,166.49,166.45,6.68030546]
[1730544825336,17.0962012,166.5,166.45,6.68030546]
[1730544828949,17.0962012,166.5,166.45,6.0078]
[1730544830636,11.0900012,166.49,166.45,6.0078]
[1730544832847,11.0900012,166.47,166.43,21.0286]
[1730544833144,17.0967012,166.48,166.43,21.0286]
[1730544836145,11.0900012,166.47,166.43,21.0286]
[1730544837237,11.0900012,166.47,166.43,15.0204]
[1730544840551,17.0971012,166.47,166.43,15.0204]
[1730544842872,17.0966012,166.49,166.44,11.0900012]
[1730544848361,17.0966012,166.49,166.43,26.1104012]
[1730544849567,17.0966012,166.49,166.43,32.1189012]
[1730544851754,6.0066,166.49,166.45,11.0900012]
[1730544855462,17.0966012,166.49,166.44,17.0979012]
[1730544859982,17.0966012,166.49,166.43,26.1104012]
[1730544860978,11.0900012,166.48,166.43,32.1189012]
[1730544866386,17.0966012,166.49,166.43,32.1189012]
[1730544869788,6.0066,166.49,166.44,11.0900012]
[1730544869985,17.0966012,166.49,166.44,11.0900012]
[1730544870197,17.0961012,166.5,166.44,11.0900012]
[1730544870485,17.0952012,166.52,166.46,11.0900012]
[1730544872793,17.0952012,166.52,166.46,17.0972012]
[1730544873887,11.0900012,166.51,166.46,17.0972012]
[1730544874194,11.0900012,166.5,166.46,6.0072]
[1730544875388,17.0957012,166.51,166.46,11.0900012]
[1730544876799,17.0957012,166.51,166.46,17.0973012]
[1730544878303,11.0900012,166.49,166.45,15.019]
[1730544878491,11.0900012,166.5,166.45,15.019]
[1730544879303,11.0900012,166.5,166.45,21.0268]
[1730544880195,17.0957012,166.51,166.45,32.1168012]
[1730544882901,11.0900012,166.5,166.45,32.1168012]
[1730544883084,17.0952012,166.52,166.46,11.0900012]
[1730544884696,17.0952012,166.52,166.46,17.0971012]
[1730544887105,11.0900012,166.5,166.45,26.1090012]
[1730544887693,11.0900012,166.5,166.45,15.019]
[1730544888801,11.0900012,166.5,166.45,21.0268]
[1730544889510,11.0900012,166.5,166.45,32.1168012]
[1730544892911,11.0900012,166.51,166.45,32.1168012]
[1730544894212,17.0958012,166.51,166.45,15.019]
[1730544894712,11.0900012,166.49,166.45,15.019]
[1730544900796,11.0900012,166.48,166.44,6.0081]
[1730544901012,11.0900012,166.47,166.44,6.0081]
[1730544901214,11.0900012,166.49,166.44,6.0081]
[1730544901395,11.0900012,166.49,166.44,17.0981012]
[1730544902221,17.0964012,166.49,166.44,17.0981012]
[1730544909117,17.0964012,166.49,166.44,6.0081]
[1730544911024,17.0964012,166.49,166.44,17.0981012]
[1730544911225,11.0900012,166.5,166.44,17.0981012]
[1730544913009,17.0963012,166.49,166.44,6.0081]
[1730544920932,11.0900012,166.5,166.44,6.0081]
[1730544923036,6.0063,166.49,166.44,6.0081]
[1730544928048,6.0063,166.49,166.44,32.1185012]
[1730544929543,6.0063,166.49,166.44,11.0900012]
[1730544929717,11.0900012,166.48,166.43,6.27192516]
[1730544929920,6.0063,166.49,166.42,6.0088]
[1730544929921,11.0900012,166.47,166.42,6.0088]
[1730544930227,11.0900012,166.48,166.42,23.37406139]
[1730544930923,17.0970012,166.48,166.42,23.37406139]
[1730544931329,6.007,166.48,166.42,6.27526019]
[1730544931531,11.0900012,166.46,166.42,6.27526019]
[1730544931721,11.0900012,166.45,166.41,21.0318]
[1730544937946,11.0900012,166.46,166.41,21.0318]
[1730544938545,11.0900012,166.46,166.41,32.1218012]
[1730544939334,17.0975012,166.46,166.41,32.1218012]
[1730544940050,17.0975012,166.46,166.41,21.0318]
[1730544942554,17.0975012,166.46,166.41,32.1218012]
[1730544942761,17.0970012,166.47,166.42,11.0900012]
[1730544946963,17.0970012,166.47,166.41,32.1218012]
[1730544948857,6.007,166.47,166.43,11.0900012]
[1730544949653,6.007,166.47,166.42,11.0900012]
[1730544950445,11.0900012,166.47,166.42,11.0900012]
[1730544950647,11.0900012,166.46,166.41,32.1218012]
[1730544950876,11.0900012,166.46,166.41,21.0318]
[1730544951172,11.0900012,166.46,166.41,32.1218012]
[1730544951539,17.0976012,166.46,166.41,32.1218012]
[1730544957971,11.0900012,166.44,166.4,6.27448051]
[1730544958272,11.0900012,166.44,166.38,32.1254012]
[1730544958467,11.0900012,166.44,166.38,38.39980362]
[1730544958853,11.0900012,166.43,166.38,32.38980362]
[1730544959267,17.0987012,166.43,166.38,32.1257012]
[1730544959895,17.0987012,166.43,166.36,45.89305489]
[1730544959896,11.0900012,166.41,166.36,45.89305489]
[1730544960050,11.0900012,166.42,166.37,11.0900012]
[1730544960250,17.0987012,166.43,166.37,11.0900012]
[1730544960786,17.0987012,166.43,166.38,11.0900012]
[1730544961153,6.0087,166.43,166.38,11.0900012]
[1730544961473,6.0087,166.43,166.39,11.0900012]
[1730544961957,6.0081,166.44,166.41,11.0900012]
[1730544963068,70.0,166.48,166.37,21.0372]
[1730544963069,17.0969012,166.48,166.43,11.0900012]
[1730544963283,6.0069,166.48,166.44,11.0900012]
[1730544963576,17.0969012,166.48,166.43,11.0900012]
[1730544964081,17.0969012,166.48,166.42,17.0987012]
[1730544965975,6.0069,166.48,166.43,11.0900012]
[1730544966279,6.0056,166.51,166.47,11.0900012]
[1730544966663,11.0900012,166.53,166.47,11.0900012]
[1730544966664,6.0053,166.52,166.47,11.0900012]
[1730544967976,6.0053,166.52,166.49,11.0900012]
[1730544968174,6.0053,166.52,166.5,11.0900012]
[1730544968487,6.0053,166.52,166.49,11.0900012]
[1730544969160,17.0949012,166.53,166.48,11.0900012]
[1730544970392,11.0900012,166.55,166.5,11.0900012]
[1730544970681,6.0046,166.54,166.5,11.0900012]
[1730544970856,6.0046,166.54,166.51,11.0900012]
[1730544971058,6.0042,166.55,166.51,11.0900012]
[1730544974165,17.0942012,166.55,166.5,11.0900012]
[1730544979982,11.0900012,166.52,166.47,26.1072012]
[1730544980965,6.0056,166.51,166.47,26.1072012]
[1730544982267,6.0056,166.51,166.48,11.0900012]
[1730544984499,6.0052,166.52,166.48,11.0900012]
[1730544984997,6.0052,166.52,166.49,11.0900012]
[1730544985879,6.0049,166.53,166.49,11.0900012]
[1730544987509,6.0045,166.54,166.49,11.0900012]
[1730544987801,17.0945012,166.54,166.49,11.0900012]
[1730544988103,17.0945012,166.54,166.48,17.0966012]
[1730544994922,11.0900012,166.56,166.5,11.0900012]
[1730544995203,17.0941012,166.56,166.5,11.0900012]
[1730544998412,6.0041,166.56,166.52,11.0900012]
[1730545001405,6.0041,166.56,166.5,6.0059]
[1730545001612,6.0041,166.56,166.51,11.0900012]
[1730545002805,17.0941012,166.56,166.51,11.0900012]
[1730545003008,17.0941012,166.56,166.5,11.0900012]
[1730545003213,11.0900012,166.52,166.47,39.7481012]
[1730545003400,11.0900012,166.52,166.47,17.0970012]
[1730545004108,11.0900012,166.52,166.47,11.0900012]
[1730545004618,11.0900012,166.52,166.46,32.98118062]
[1730545005112,17.0956012,166.52,166.46,32.98118062]
[1730545008919,17.0956012,166.52,166.47,11.0900012]
[1730545009103,17.0956012,166.52,166.47,17.0969012]
[1730545013199,11.0900012,166.51,166.46,26.1085012]
[1730545013508,11.0900012,166.51,166.46,32.1159012]
[1730545016102,17.0959012,166.51,166.46,21.0259]
[1730545021017,11.0900012,166.5,166.46,21.0259]
[1730545021718,11.0900012,166.51,166.46,21.0259]
[1730545021903,11.0900012,166.52,166.46,32.1159012]
[1730545022508,17.0956012,166.52,166.46,32.1159012]
[1730545023824,17.0956012,166.52,166.47,11.0900012]
[1730545024224,17.0956012,166.52,166.46,26.1085012]
[1730545024921,17.0956012,166.52,166.46,32.1159012]
[1730545030323,11.0900012,166.51,166.46,32.1159012]
[1730545041935,17.0959012,166.51,166.45,17.0977012]
[1730545043520,17.0959012,166.51,166.45,32.1172012]
[1730545046228,6.0059,166.51,166.46,17.0971012]
[1730545046545,11.0900012,166.55,166.49,11.0900012]
[1730545047038,11.0900012,166.54,166.48,11.0900012]
[1730545047731,11.0900012,166.53,166.48,17.0964012]
[1730545048920,17.0949012,166.53,166.48,17.0964012]
[1730545050730,11.0900012,166.54,166.48,17.0964012]
[1730545051838,6.0049,166.53,166.48,17.0964012]
[1730545054859,6.0049,166.53,166.49,11.0900012]
[1730545061558,11.0900012,166.54,166.49,11.0900012]
[1730545061765,6.0046,166.54,166.49,17.0962012]
[1730545063970,11.0900012,166.54,166.49,17.0962012]
[1730545064763,11.0900012,166.55,166.5,11.0900012]
[1730545065263,11.0900012,166.56,166.5,11.0900012]
[1730545068367,6.0042,166.55,166.5,17.0958012]
[1730545070267,11.0900012,166.56,166.5,17.0958012]
[1730545070268,6.0039,166.56,166.51,11.0900012]
[1730545070561,6.0039,166.56,166.52,11.0900012]
[1730545075952,6.0039,166.56,166.51,11.0900012]
[1730545079353,6.0039,166.56,166.51,17.0956012]
[1730545081871,6.0039,166.56,166.52,11.0900012]
[1730545082667,6.0039,166.56,166.5,15.015]
[1730545082668,6.0039,166.56,166.51,11.0900012]
[1730545084955,6.0039,166.56,166.51,17.0955012]
[1730545088674,17.0939012,166.56,166.5,15.015]
[1730545088973,11.0900012,166.54,166.49,17.0960012]
[1730545089975,17.0948012,166.54,166.49,17.0960012]
[1730545090153,17.0948012,166.54,166.48,23.36616189]
[1730545091389,17.0948012,166.54,166.48,38.38296189]
[1730545095875,17.0948012,166.54,166.49,11.0900012]
[1730545096097,17.0948012,166.54,166.49,17.0960012]
[1730545096275,6.0048,166.54,166.49,17.0960012]
[1730545096787,17.0948012,166.54,166.49,17.0960012]
[1730545097994,17.0948012,166.54,166.49,6.006]
[1730545116299,17.0948012,166.54,166.48,26.1068012]
[1730545116597,17.0948012,166.54,166.48,32.1134012]
[1730545118295,17.0942012,166.55,166.49,11.0900012]
[1730545118695,11.0900012,166.56,166.5,11.0900012]
[1730545118875,17.0939012,166.56,166.5,11.0900012]
[1730545119077,6.0039,166.56,166.51,11.0900012]
[1730545119798,17.0939012,166.56,166.51,6.0056]
[1730545121899,2.80914713,166.56,166.51,6.0056]
[1730545122782,8.81324713,166.56,166.51,6.0056]
[1730545125685,6.0041,166.56,166.51,11.0900012]
[1730545126491,17.0941012,166.56,166.5,17.0960012]
[1730545126692,17.0947012,166.54,166.5,6.006]
[1730545127001,17.0947012,166.54,166.49,6.0063]
[1730545128205,11.0900012,166.52,166.48,21.2865003]
[1730545128382,11.0900012,166.52,166.48,6.2697003]
[1730545128702,11.0900012,166.51,166.48,6.2697003]
[1730545128880,11.0900012,166.49,166.48,6.2697003]
[1730545129502,11.0900012,166.49,166.45,15.0192]
[1730545134202,11.0900012,166.48,166.44,6.27231713]
[1730545134594,11.0900012,166.47,166.44,42.99521741]
[1730545134906,11.0900012,166.47,166.43,6.0085]
[1730545135114,11.0900012,166.48,166.43,6.0085]
[1730545136121,17.0960012,166.5,166.45,11.0900012]
[1730545136305,6.006,166.5,166.47,11.0900012]
[1730545136507,17.0955012,166.52,166.47,11.0900012]
[1730545137214,11.0900012,166.51,166.46,11.0900012]
[1730545137598,11.0900012,166.51,166.46,17.0972012]
[1730545139601,11.0900012,166.49,166.46,6.0072]
[1730545139803,11.0900012,166.49,166.45,6.0078]
[1730545143615,11.0900012,166.5,166.45,21.0273]
[1730545143920,11.0900012,166.5,166.45,32.1173012]
[1730545144113,17.0959012,166.51,166.45,32.1173012]
[1730545155823,17.0959012,166.51,166.45,26.1095012]
[1730545160326,17.0959012,166.51,166.45,32.1173012]
[1730545160695,6.0059,166.51,166.46,11.0900012]
[1730545160913,17.0952012,166.52,166.47,11.0900012]
[1730545161205,11.0900012,166.51,166.46,11.0900012]
[1730545163632,17.0958012,166.51,166.46,17.0973012]
[1730545164023,11.0900012,166.5,166.46,6.0073]
[1730545165097,17.0958012,166.51,166.46,6.0073]
[1730545169610,17.0958012,166.51,166.46,11.0900012]
[1730545171933,17.0958012,166.51,166.46,17.0973012]
[1730545177934,17.0958012,166.51,166.45,26.1095012]
[1730545179434,17.0958012,166.51,166.45,32.1173012]
[1730545185127,17.0958012,166.51,166.46,17.0973012]
[1730545185334,6.0058,166.51,166.46,17.0973012]
[1730545188023,11.0900012,166.52,166.47,11.0900012]
[1730545188242,17.0948012,166.54,166.49,11.0900012]
[1730545190539,17.0948012,166.54,166.48,11.0900012]
[1730545190736,11.0900012,166.52,166.46,26.1086012]
[1730545191538,11.0900012,166.52,166.47,11.0900012]
[1730545193242,11.0900012,166.52,166.48,6.0067]
[1730545195850,11.0900012,166.53,166.48,6.0067]
[1730545197644,11.0900012,166.52,166.48,6.0067]
[1730545201241,11.0900012,166.53,166.48,6.0067]
[1730545201435,11.0900012,166.54,166.48,17.0967012]
[1730545201751,26.6400012,166.56,166.5,11.0900012]
[1730545201935,11.0900012,166.56,166.51,11.0900012]
[1730545202256,11.0900012,166.55,166.5,11.0900012]
[1730545203738,11.0900012,166.55,166.51,6.0056]
[1730545206444,11.0900012,166.53,166.48,31.0900012]
[1730545206748,11.0900012,166.53,166.48,11.0900012]
[1730545207649,11.0900012,166.53,166.47,30.0343]
[1730545207650,11.0900012,166.52,166.47,11.0900012]
[1730545208044,11.0900012,166.51,166.46,31.0900012]
[1730545208639,11.0900012,166.51,166.46,11.0900012]
[1730545208840,11.0900012,166.51,166.47,21.0247]
[1730545209627,61.978806,166.48,166.43,6.2732494]
[1730545209833,11.0900012,166.44,166.35,11.0900012]
[1730545210029,11.0900012,166.4,166.35,15.0278]
[1730545212950,11.0900012,166.39,166.35,15.0278]
[1730545213266,11.0900012,166.37,166.33,20.0]
[1730545213434,11.0900012,166.37,166.32,40.8790852]
[1730545215033,11.0900012,166.38,166.32,40.8790852]
[1730545215251,11.0900012,166.38,166.32,55.9102852]
[1730545218758,11.0900012,166.37,166.32,55.9102852]
[1730545221455,11.0900012,166.37,166.32,32.1334012]
[1730545221649,11.0900012,166.37,166.32,21.0434]
[1730545222648,11.0900012,166.36,166.32,21.0434]
[1730545223350,11.0900012,166.35,166.29,11.0900012]
[1730545223561,11.0900012,166.35,166.3,20.0]
[1730545224139,11.0900012,166.35,166.29,17.35915346]
[1730545224452,11.0900012,166.34,166.29,17.35915346]
[1730545224652,11.0900012,166.34,166.3,6.0132]
[1730545226643,11.0900012,166.35,166.3,17.1032012]
[1730545227047,11.0900012,166.36,166.3,17.1032012]
[1730545227363,11.0900012,166.35,166.3,17.1032012]
[1730545228061,11.0900012,166.35,166.3,6.0132]
[1730545232556,11.0900012,166.33,166.29,21.0474]
[1730545232757,11.0900012,166.32,166.29,21.0474]
[1730545232966,11.0900012,166.32,166.29,15.0339]
[1730545233968,11.0900012,166.32,166.28,6.0139]
[1730545239175,11.0900012,166.33,166.28,6.0139]
[1730545240279,17.1022012,166.33,166.28,6.0139]
[1730545241279,17.1022012,166.33,166.27,21.05]
[1730545241768,11.0900012,166.32,166.27,21.05]
[1730545241981,11.0900012,166.31,166.27,21.05]
[1730545242368,11.0900012,166.29,166.27,15.0357]
[1730545244178,11.0900012,166.3,166.27,21.05]
[1730545250884,11.0900012,166.31,166.27,21.05]
[1730545255972,11.0900012,166.32,166.27,21.05]
[1730545257184,17.1026012,166.32,166.27,21.05]
[1730545258970,11.0900012,166.32,166.27,32.1400012]
[1730545259171,11.0900012,166.33,166.28,11.0900012]
[1730545259592,11.0900012,166.32,166.27,32.1400012]
[1730545260292,11.0900012,166.33,166.28,11.0900012]
[1730545260485,11.0900012,166.34,166.28,11.0900012]
[1730545260694,11.0900012,166.34,166.29,11.0900012]
[1730545261486,11.0900012,166.33,166.29,6.0132]
[1730545262599,11.0900012,166.32,166.28,21.0487]
[1730545262780,11.0900012,166.33,166.28,21.0487]
[1730545263092,11.0900012,166.32,166.28,21.0487]
[1730545268776,11.0900012,166.31,166.28,15.0348]
[1730545271400,17.1025012,166.32,166.28,15.0348]
[1730545273209,11.0900012,166.31,166.28,15.0348]
[1730545273507,11.0900012,166.32,166.28,15.0348]
[1730545274805,17.1025012,166.32,166.28,15.0348]
[1730545277506,11.0900012,166.33,166.28,15.0348]
[1730545279010,17.1023012,166.33,166.28,15.0348]
[1730545285914,11.0900012,166.33,166.28,15.0348]
[1730545287012,11.0900012,166.33,166.28,21.0487]
[1730545287895,11.0900012,166.33,166.28,32.1387012]
[1730545294102,11.0900012,166.34,166.29,11.0900012]
[1730545296420,11.0900012,166.34,166.29,6.0135]
[1730545296620,11.0900012,166.34,166.29,21.0474]
[1730545297027,11.0900012,166.35,166.29,32.1374012]
[1730545297218,6.0111,166.36,166.29,32.1374012]
[1730545297219,11.0900012,166.34,166.29,32.1374012]
[1730545305228,11.0900012,166.34,166.29,21.0474]
[1730545305536,11.0900012,166.33,166.29,21.0474]
[1730545306517,11.0900012,166.33,166.29,15.0339]
[1730545309316,11.0900012,166.31,166.29,15.0339]
[1730545310734,11.0900012,166.32,166.29,15.0339]
[1730545312310,11.0900012,166.33,166.29,15.0339]
[1730545313634,11.0900012,166.33,166.29,21.0474]
[1730545314632,11.0900012,166.33,166.27,11.0900012]
[1730545315839,11.0900012,166.33,166.28,21.0487]
[1730545317416,11.0900012,166.33,166.28,26.1248012]
[1730545318522,17.1018012,166.34,166.29,11.0900012]
[1730545318731,11.0900012,166.35,166.29,11.0900012]
[1730545318917,17.1015012,166.35,166.29,11.0900012]
[1730545319111,11.0900012,166.34,166.29,11.0900012]
[1730545320122,11.0900012,166.34,166.29,17.1032012]
[1730545321840,17.1018012,166.34,166.29,17.1032012]
[1730545324143,11.0900012,166.34,166.29,32.1371012]
[1730545325744,11.0900012,166.33,166.29,21.0471]
[1730545327843,11.0900012,166.32,166.29,15.0339]
[1730545328140,11.0900012,166.31,166.29,15.0339]
[1730545328335,11.0900012,166.31,166.27,6.0143]
[1730545328543,11.0900012,166.3,166.27,6.0143]
[1730545328730,11.0900012,166.31,166.27,6.0143]
[1730545328933,11.0900012,166.31,166.27,21.05]
[1730545331741,11.0900012,166.3,166.27,21.05]
[1730545332436,11.0900012,166.3,166.27,15.0357]
[1730545332737,11.0900012,166.29,166.27,15.0357]
[1730545333135,11.0900012,166.3,166.27,15.0357]
[1730545334429,11.0900012,166.29,166.27,15.0357]
[1730545335142,11.0900012,166.3,166.27,15.0357]
[1730545347555,11.0900012,166.29,166.27,15.0357]
[1730545349354,11.0900012,166.28,166.25,6.015]
[1730545349557,50.3725048,166.32,166.25,6.015]
[1730545349558,11.0900012,166.27,166.25,6.015]
[1730545350238,11.0900012,166.27,166.24,51.1296]
[1730545351273,11.0900012,166.27,166.24,21.0536]
[1730545352446,11.0900012,166.27,166.24,15.0383]
[1730545354751,11.0900012,166.26,166.24,15.0383]
[1730545355860,11.0900012,166.27,166.24,15.0383]
[1730545357755,11.0900012,166.28,166.24,15.0383]
[1730545360042,11.0900012,166.28,166.24,21.0536]
[1730545364663,11.0900012,166.27,166.24,15.0383]
[1730545368658,17.1043012,166.27,166.24,15.0383]
[1730545369166,11.0900012,166.26,166.22,12.2817143]
[1730545369755,11.0900012,166.26,166.21,15.0408]
[1730545369954,11.0900012,166.26,166.21,21.0572]
[1730545370160,11.0900012,166.25,166.21,21.0572]
[1730545370763,11.0900012,166.26,166.21,21.0572]
[1730545372265,11.0900012,166.26,166.21,32.1472012]
[1730545382170,11.0900012,166.26,166.21,21.0572]
[1730545382687,11.0900012,166.25,166.21,21.0572]
[1730545386063,11.0900012,166.24,166.21,15.0408]
[1730545389586,11.0900012,166.23,166.2,6.28033152]
[1730545389879,87.1043012,166.27,166.21,11.0900012]
[1730545390086,81.0900012,166.27,166.22,11.0900012]
[1730545390279,81.0900012,166.27,166.21,11.0900012]
[1730545390667,11.0900012,166.27,166.22,11.0900012]
[1730545391769,11.0900012,166.27,166.21,34.8668852]
[1730545393164,11.0900012,166.27,166.22,6.0161]
[1730545393868,11.0900012,166.27,166.22,21.0564]
[1730545395894,11.0900012,166.27,166.22,32.1464012]
[1730545396473,11.0900012,166.26,166.22,32.1464012]
[1730545396985,11.0900012,166.26,166.22,21.0564]
[1730545397874,11.0900012,166.25,166.22,21.0564]
[1730545399799,11.0900012,166.26,166.22,21.0564]
[1730545407193,11.0900012,166.27,166.22,32.1464012]
[1730545407797,11.0900012,166.28,166.23,11.0900012]
[1730545407980,11.0900012,166.27,166.22,32.1464012]
[1730545413798,11.0900012,166.29,166.24,11.0900012]
[1730545413980,11.0900012,166.29,166.23,34.8668852]
[1730545414183,11.0900012,166.27,166.23,23.776884]
[1730545415395,11.0900012,166.27,166.24,21.0537]
[1730545415599,11.0900012,166.28,166.24,21.0537]
[1730545420508,11.0900012,166.29,166.24,21.0537]
[1730545421109,17.1032012,166.3,166.24,32.1437012]
[1730545421416,11.0900012,166.29,166.24,32.1437012]
[1730545429921,11.0900012,166.29,166.24,21.0537]
[1730545432425,11.0900012,166.29,166.24,32.1437012]
[1730545435210,11.0900012,166.29,166.24,21.0537]
[1730545436010,6.0127,166.32,166.24,21.0537]
[1730545436224,17.1027012,166.32,166.26,11.0900012]
[1730545436529,11.0900012,166.32,166.26,11.0900012]
[1730545436725,11.0900012,166.32,166.27,11.0900012]
[1730545436913,11.0900012,166.33,166.27,11.0900012]
[1730545437109,11.0900012,166.32,166.27,11.0900012]
[1730545437307,11.0900012,166.33,166.28,11.0900012]
[1730545438111,11.0900012,166.32,166.27,26.1256012]
[1730545439612,11.0900012,166.32,166.27,32.1399012]
[1730545446026,11.0900012,166.32,166.27,15.0356]
[1730545447928,11.0900012,166.32,166.27,21.0499]
[1730545451044,11.0900012,166.31,166.27,21.0499]
[1730545455332,11.0900012,166.3,166.27,21.0499]